[Event "44th Chess Olympiad Women 2022"]
[Site "Chennai"]
[Date "2022.08.01"]
[Round "4.12"]
[White "O`Gorman, Alice"]
[Black "Sargsyan, Anna M."]
[Result "0-1"]
[WhiteElo "2043"]
[BlackElo "2378"]
[Annotator "TA"]
[PlyCount "54"]
[EventDate "2022.??.??"]
[TimeControl "60"]

{[%evp 11,54,-12,-8,-33,-10,-9,-3,-35,-33,-37,-39,-53,-60,-52,-45,-48,-35,-34,
-22,-84,-94,-107,-120,-212,-105,-810,-804,-1277,-799,-1547,-1539,-29993,-1547,
-1440,-954,-933,-912,-924,-913,-2575,-2447,-2201,-2246,-1608,-1551]} 1. c4 {
[%emt 0:00:02]} e5 {[%emt 0:00:50]} 2. Nc3 {[%emt 0:00:15]} Nf6 {[%emt 0:00:24]
} 3. g3 {[%emt 0:00:11]} Bb4 {[%emt 0:00:10]} 4. e4 {[%emt 0:00:48]} O-O {
[%emt 0:00:08]} 5. Bg2 {[%emt 0:00:51]} Bxc3 {[%emt 0:00:15]} 6. dxc3 {[%emt 0:
00:00]} d6 {[%emt 0:00:11] [#]} 7. Bd2 $146 {[%emt 0:02:56] A22: English
Opening: 1...e5 2 Nc3 Nf6.} ({Predecessor:} 7. Qc2 a5 8. a4 Nc6 9. Nf3 h6 10.
Nh4 Be6 11. b3 Nd7 12. O-O Nc5 13. Be3 b6 14. Rad1 Re8 {½-½ (59) Le,Q (2708)
-Van Foreest,J (2621) Douglas 2019}) 7... b6 {[%emt 0:01:52]} 8. Qe2 {[%emt 0:
00:00]} Bb7 {[%emt 0:01:55]} 9. O-O-O {[%emt 0:00:32] The position is equal.}
Nbd7 {[%emt 0:00:32][%cal Yb6b5]} 10. g4 {[%emt 0:02:51]} Nc5 {[%emt 0:00:41]
[%cal Rf6e4]} 11. f3 {[%emt 0:00:36]} b5 {[%emt 0:03:06]} 12. Be3 {[%emt 0:00:
00] Black must now prevent Bxc5.} Nfd7 $36 {[%emt 0:00:21] Black is more
active.} 13. cxb5 {[%emt 0:02:51]} a6 {[%emt 0:00:07]} 14. b6 {[%emt 0:00:00]}
a5 {[%emt 0:00:24]} 15. bxc7 {[%emt 0:07:46]} (15. Qd2 $11 {remains equal.}
Nxb6 16. Bxc5 dxc5 17. Qxd8 Rfxd8 18. Rxd8+ Rxd8 19. Ne2) 15... Qxc7 $17 {
[%emt 0:00:05]} 16. Qd2 {[%emt 0:01:03]} Ra6 {[%emt 0:00:06] Threatens to win
with ...Rb8. Black has strong compensation. Black is more active.} 17. Ne2 {
[%emt 0:14:44]} (17. h4 $17) 17... Rb8 {[%emt 0:05:53]} (17... Rb6 $1 $19 {
has better winning chances.} 18. Bf1 Rb8) 18. Qe1 $2 {[%emt 0:07:56] Loses the
game.} (18. c4 $17) 18... Rb6 $19 {[%emt 0:00:00]} 19. Kb1 {[%emt 0:06:48]} Ba6
{[%emt 0:01:17]} 20. Bc1 {[%emt 0:13:10]} Qb7 {[%emt 0:01:35][%cal Rb6b2]} 21.
Rd2 {[%emt 0:03:55]} Nd3 {[%emt 0:00:54]} (21... Bd3+ $142 22. Ka1 a4 23. Qd1 {
[#]} Nb3+ $1 24. Qxb3 axb3 25. a3 Bc2 26. Nf4 exf4 27. Bf1 Ra8 28. Rd4 Ne5 29.
Be2 Qc6 30. h4 Rb7 31. Rb4 Rxb4 32. g5 Rba4 33. Bc4 Qxc4 34. Bd2 Rxa3+ $1 35.
bxa3 Rxa3+ 36. Kb2 Ra2+ 37. Kc1 Nd3#) 22. Qg1 {[%emt 0:03:09] Black is clearly
winning.} Nxb2 {[%emt 0:00:21] Hoping for ...Na4+. Pair of Knights!} 23. Qxb6 {
[%emt 0:00:50]} Nxb6 {[%emt 0:00:06]} 24. Rxb2 {[%emt 0:00:23]} Bxe2 {[%emt 0:
00:05]} 25. Rxe2 {[%emt 0:00:46]} Na4+ {[%emt 0:01:00]} 26. Kc2 {[%emt 0:00:16]
} Qb1+ {[%emt 0:00:00]} 27. Kd2 {[%emt 0:00:18]} Rc8 {[%emt 0:00:11] Weighted
Error Value: White=1.37/Black=0.82} 0-1

[Event "44th Chess Olympiad Women 2022"]
[Site "Chennai"]
[Date "2022.08.01"]
[Round "4.13"]
[White "Garcia Martin, Marta"]
[Black "Guillen Cristobal, Sandra N"]
[Result "1-0"]
[WhiteElo "2305"]
[BlackElo "1962"]
[Annotator "TA"]
[PlyCount "95"]
[EventDate "2022.??.??"]
[TimeControl "60"]

{[%evp 9,95,50,49,33,59,66,122,131,133,129,139,139,119,121,145,147,248,239,237,
247,282,293,366,356,361,364,372,374,377,370,366,375,378,372,370,369,367,354,
388,389,487,482,668,658,660,652,723,562,839,842,816,792,1114,1047,1539,1381,
996,1008,810,537,516,508,491,433,433,422,639,618,600,491,29977,29978,29977,
29976,1549,1493,1356,-29993,1199,1177,1950,1246,7122,7115,6195,6165,4822,4714]
} 1. d4 {[%emt 0:00:05]} f5 {[%emt 0:00:10]} 2. Nc3 {[%emt 0:00:26]} Nf6 {
[%emt 0:00:14]} 3. Bf4 {[%emt 0:00:46]} g6 {[%emt 0:01:07]} 4. e3 {[%emt 0:00:
00]} Bg7 {[%emt 0:00:12]} 5. h4 {[%emt 0:00:43][%cal Yh2h4,Yh4h5]} d6 {[%emt 0:
02:45]} 6. Bc4 {[%emt 0:03:16][%cal Yh4h5] [#] A80: Dutch Defence: Unusual
White second moves.} Nc6 $146 {[%emt 0:03:07]} ({Predecessor:} 6... h6 7. Qf3
e6 8. Qg3 Kf7 9. O-O-O Nc6 10. Nh3 a6 11. e4 fxe4 12. f3 Nh5 {1-0 (69) Johnson,
B (2525)-Firnhaber,I (2478) GER email 2018}) 7. h5 {[%emt 0:16:28]} e5 {
[%emt 0:07:43]} (7... e6 $14) 8. dxe5 $16 {[%emt 0:14:28] White is more active.
White is better.} Nxe5 {[%emt 0:01:44]} 9. Bb3 {[%emt 0:03:53]} gxh5 {[%emt 0:
17:04] [#]} 10. Nge2 $1 {[%emt 0:02:52]} Qe7 {[%emt 0:08:26]} 11. Bg5 {[%emt 0:
15:13] aiming for Nd5.} c6 {[%emt 0:02:21] Inhibits Nd5.} 12. Nf4 {[%emt 0:02:
13]} Bd7 {[%emt 0:10:43]} (12... Ng6 $16) 13. Nxh5 $18 {[%emt 0:00:00]} O-O-O {
[%emt 0:02:40]} 14. Qd4 {[%emt 0:00:25]} b6 {[%emt 0:12:39]} 15. O-O-O {
[%emt 0:05:29]} Be8 {[%emt 0:07:34]} 16. Nxg7 {[%emt 0:00:59]} Qxg7 {[%emt 0:
00:18]} 17. Qh4 {[%emt 0:01:19]} ({Weaker is} 17. f4 Neg4 18. e4 Bf7 19. exf5
d5 $16) 17... Rf8 {[%emt 0:05:35]} 18. Bh6 {[%emt 0:01:01] This bishop pair is
nice.} Qe7 {[%emt 0:00:28]} 19. Bxf8 {[%emt 0:00:23]} Qxf8 {[%emt 0:00:05]} 20.
Be6+ {[%emt 0:00:56]} Bd7 {[%emt 0:00:38]} 21. Bxd7+ {[%emt 0:00:07]} Rxd7 {
[%emt 0:00:12]} 22. Qf4 {[%emt 0:02:57]} Ne8 {[%emt 0:00:00]} 23. Rh5 {[%emt 0:
03:20]} Rf7 {[%emt 0:01:13]} 24. Rdh1 {[%emt 0:00:53]} Nc7 {[%emt 0:08:59]} 25.
Rxh7 {[%emt 0:01:15] [#] Strongly threatening Rh8.} Kb7 {[%emt 0:00:32]} 26.
Rxf7 {[%emt 0:03:01]} Qxf7 {[%emt 0:00:07]} 27. e4 {[%emt 0:00:11][%cal Ye3e4,
Ye4f5,Yf5f6]} Qc4 {[%emt 0:02:07]} 28. Qd2 {[%emt 0:05:10] Inhibits Nd5.} Nb5 {
[%emt 0:01:55]} 29. Nxb5 {[%emt 0:00:45]} Qxb5 {[%emt 0:00:06]} 30. exf5 {
[%emt 0:00:49] Endgame KQR-KQN} Nc4 {[%emt 0:01:49]} 31. Qc3 {[%emt 0:00:10]}
Qc5 {[%emt 0:00:31]} 32. Kb1 {[%emt 0:00:53]} b5 {[%emt 0:00:15]} 33. f6 {
[%emt 0:00:32] Threatens to win with f7.} Qxf2 {[%emt 0:00:11]} 34. b3 {
[%emt 0:00:31]} Nd2+ {[%emt 0:00:32]} 35. Kc1 {[%emt 0:00:31]} Ne4 {[%emt 0:00:
30]} 36. Qd3 {[%emt 0:00:30]} ({Less strong is} 36. Rh7+ Kb6 37. Qd3 Qf4+ 38.
Kb1 Nxf6 $18) 36... Qf4+ {[%emt 0:00:24]} 37. Kb1 {[%emt 0:00:30]} Nd2+ {
[%emt 0:00:37]} (37... Nxf6 $142 38. Rf1 Qe5) 38. Kb2 {[%emt 0:00:24]} Qxf6+ {
[%emt 0:00:40]} 39. Qc3 {[%emt 0:00:00]} Qf2 {[%emt 0:00:53]} (39... Ne4 $18
40. Qxf6 Nxf6) 40. Rh7+ {[%emt 0:00:00]} Kb6 {[%emt 0:00:34]} 41. Qg7 {[%emt 0:
30:22][%csl Gh7][%cal Rg7a7]} Ka5 {[%emt 0:05:43]} 42. Qxa7+ {[%emt 0:00:00]}
Qxa7 {[%emt 0:00:14]} 43. Rg7 $4 {[%emt 0:00:03]} (43. Rxa7+ $18 Kb6 44. Rg7)
43... Qb7 $4 44. Rxb7 {[%emt 0:00:00] White is clearly winning.} Kb4 {[%emt 0:
01:02]} 45. Re7 {[%emt 0:00:00] Hoping for g4.} d5 {[%emt 0:00:32]} 46. g4 {
[%emt 0:00:00] White wants to mate with g5.} Nf3 {[%emt 0:01:21]} 47. Rf7 {
[%emt 0:00:00]} Ng5 {[%emt 0:02:35]} 48. Rf5 {[%emt 0:00:00] Quite a comeback
for White. Weighted Error Value: White=0.06 (flawless) /Black=0.36} 1-0

[Event "44th Chess Olympiad Women 2022"]
[Site "Chennai"]
[Date "2022.08.01"]
[Round "4.13"]
[White "Guerrero Rodriguez, Alejandra"]
[Black "Matnadze, Ana"]
[Result "0-1"]
[WhiteElo "2006"]
[BlackElo "2406"]
[Annotator "TA"]
[PlyCount "62"]
[EventDate "2022.??.??"]
[TimeControl "60"]

{[%evp 13,62,1,10,6,35,16,22,35,47,41,78,73,81,68,104,96,113,96,101,67,88,68,
90,64,77,66,85,-24,-26,-23,14,11,0,0,-8,-85,-94,-220,2,-379,-384,-455,-427,
-715,-702,-1027,-966,-1267,-1272,-1561,-1525]} 1. Nf3 {[%emt 0:00:06]} d5 {
[%emt 0:00:11]} 2. g3 {[%emt 0:00:14]} c6 {[%emt 0:01:00]} 3. Bg2 {[%emt 0:00:
00]} Bg4 {[%emt 0:00:38]} 4. c4 {[%emt 0:00:33]} e6 {[%emt 0:03:58]} 5. cxd5 {
[%emt 0:00:53]} exd5 {[%emt 0:00:11]} 6. O-O {[%emt 0:00:37]} Nd7 {[%emt 0:00:
00]} 7. d3 {[%emt 0:01:27]} Ngf6 {[%emt 0:00:22]} 8. Nc3 {[%emt 0:01:44] A11:
English Opening: 1...c6.} h6 {[%emt 0:05:05]} 9. Qc2 {[%emt 0:03:30]} Be7 {
[%emt 0:00:43]} 10. e4 {[%emt 0:02:54] [#] The position is equal.} Nb6 $146 {
[%emt 0:11:00]} ({Predecessor:} 10... O-O 11. h3 Bxf3 12. Bxf3 Re8 13. Bg2 Nc5
14. e5 Nfd7 15. d4 Ne6 16. Rd1 Rf8 {1-0 (38) Badea,B (2480)-Tocchioni,D (2250)
Porto San Giorgio 2000}) 11. h3 {[%emt 0:14:38]} Bh5 {[%emt 0:06:33]} 12. Nh4 {
[%emt 0:05:12]} dxe4 {[%emt 0:04:06]} 13. dxe4 {[%emt 0:02:21]} Nfd7 {[%emt 0:
00:00]} 14. Nf5 {[%emt 0:02:46]} O-O {[%emt 0:01:57]} 15. Nxe7+ {[%emt 0:21:32]
} Qxe7 {[%emt 0:00:07]} 16. f4 {[%emt 0:01:02]} Bg6 {[%emt 0:01:46]} 17. b3 {
[%emt 0:03:48]} Rfe8 {[%emt 0:07:41]} 18. Bb2 {[%emt 0:05:15]} Rad8 {[%emt 0:
00:00]} 19. Rad1 {[%emt 0:05:59]} Qc5+ {[%emt 0:09:44]} 20. Kh2 {[%emt 0:01:49]
[#]} ({White should play} 20. Rf2 $16) 20... Nd5 $1 $11 {[%emt 0:05:37] ...Ne3
is the strong threat.} 21. b4 {[%emt 0:21:03]} Nxb4 {[%emt 0:03:10]} (21... Ne3
$5 {[%cal Rc5b4]} 22. bxc5 Nxc2 $11) 22. Qb3 {[%emt 0:00:18]} Nb6 {[%emt 0:00:
00]} 23. Ba3 {[%emt 0:02:46]} a5 {[%emt 0:00:09]} 24. Rb1 {[%emt 0:00:16]} (24.
f5 $11 Bh7 25. Bc1) 24... Rd4 $17 {[%emt 0:04:58] Black is much more active.} (
{Much worse is} 24... Rd2 $6 25. f5 Bh7 26. Bxb4 axb4 27. Qxb4 $11) 25. Rfc1 {
[%emt 0:00:59]} (25. Rbd1 $17) 25... Qd6 $2 {[%emt 0:05:54] [#]} (25... Rd2 $19
26. Rb2 Rd3) 26. e5 $2 {[%emt 0:00:34]} (26. Rd1 $11 {and White has nothing to
worry.}) 26... Qd7 $19 {[%emt 0:01:25]} 27. Ra1 {[%emt 0:00:35]} c5 {[%emt 0:
03:38] Black is clearly winning.} ({Avoid the trap} 27... Rd2 $2 28. Bxb4 axb4
29. Qxb4 $19) 28. Bb2 {[%emt 0:00:47]} (28. Bxb4 $142 axb4 29. Ne2) 28... Rd2 {
[%emt 0:02:04] Strongly threatening ...Qc6.} 29. Rg1 {[%emt 0:00:35]} Bc2 {
[%emt 0:00:48]} 30. Qa3 {[%emt 0:00:20]} Nc4 {[%emt 0:00:06]} 31. Qxa5 {
[%emt 0:00:09]} Nxa5 {[%emt 0:00:07] Weighted Error Value: White=0.97/Black=0.
21 (precise)} 0-1

[Event "44th Chess Olympiad Women 2022"]
[Site "Chennai"]
[Date "2022.08.01"]
[Round "4.13"]
[White "Hernandez Diaz, Paula Sofia"]
[Black "Eizaguerri Floris, Maria"]
[Result "0-1"]
[WhiteElo "1751"]
[BlackElo "2176"]
[Annotator "NA RC"]
[PlyCount "62"]
[EventDate "2022.??.??"]
[TimeControl "60"]

1. Nf3 {[%emt 0:00:06]} d5 {[%emt 0:00:11]} 2. g3 {[%emt 0:00:14]} c6 {[%emt 0:
00:00]} 3. Bg2 {[%emt 0:00:14]} Bg4 {[%emt 0:00:38]} 4. c4 {[%emt 0:00:33]} e6
{[%emt 0:03:58]} 5. cxd5 {[%emt 0:00:53]} exd5 {[%emt 0:00:11]} 6. O-O {
[%emt 0:00:37]} Nd7 {[%emt 0:01:38]} 7. d3 {[%emt 0:01:27]} Ngf6 {[%emt 0:00:
00]} 8. Nc3 {[%emt 0:01:44]} h6 {[%emt 0:05:05]} 9. Qc2 {[%emt 0:03:30]} Be7 {
[%emt 0:00:43]} 10. e4 {[%emt 0:02:54]} Nb6 {[%emt 0:11:00]} 11. h3 {[%emt 0:
00:00]} Bh5 {[%emt 0:06:33]} 12. Nh4 {[%emt 0:05:12]} dxe4 {[%emt 0:04:06]} 13.
dxe4 {[%emt 0:02:21]} Nfd7 {[%emt 0:00:33]} 14. Nf5 {[%emt 0:02:46]} O-O {
[%emt 0:01:57]} 15. Nxe7+ {[%emt 0:21:32]} Qxe7 {[%emt 0:00:07]} 16. f4 {
[%emt 0:01:02]} Bg6 {[%emt 0:01:46]} 17. b3 {[%emt 0:03:48]} Rfe8 {[%emt 0:00:
00]} 18. Bb2 {[%emt 0:05:15]} Rad8 {[%emt 0:02:47]} 19. Rad1 {[%emt 0:05:59]}
Qc5+ {[%emt 0:09:44]} 20. Kh2 {[%emt 0:01:49]} Nd5 {[%emt 0:05:37]} 21. b4 {
[%emt 0:21:03]} Nxb4 {[%emt 0:03:10]} 22. Qb3 {[%emt 0:00:18]} Nb6 {[%emt 0:00:
00]} 23. Ba3 {[%emt 0:02:46]} a5 {[%emt 0:00:09]} 24. Rb1 {[%emt 0:00:16]} Rd4
{[%emt 0:04:58]} 25. Rfc1 {[%emt 0:00:59]} Qd6 {[%emt 0:05:54]} 26. e5 {
[%emt 0:00:34]} Qd7 {[%emt 0:01:25]} 27. Ra1 {[%emt 0:00:35]} c5 {[%emt 0:00:
00]} 28. Bb2 {[%emt 0:00:47]} Rd2 {[%emt 0:02:04]} 29. Rg1 {[%emt 0:00:35]} Bc2
{[%emt 0:00:48]} 30. Qa3 {[%emt 0:00:20]} Nc4 {[%emt 0:00:06]} 31. Qxa5 {
[%emt 0:00:09]} Nxa5 {[%emt 0:00:07]} 0-1

[Event "44th Chess Olympiad Women 2022"]
[Site "Chennai"]
[Date "2022.08.01"]
[Round "4.13"]
[White "Vega Gutierrez, Sabrina"]
[Black "Corrales Jimenez, Zenia"]
[Result "1-0"]
[WhiteElo "2366"]
[BlackElo "2143"]
[Annotator "TA"]
[PlyCount "69"]
[EventDate "2022.??.??"]
[TimeControl "60"]

{[%evp 20,69,-12,0,0,0,0,0,14,-5,89,78,53,16,158,158,183,169,176,162,175,166,
197,195,187,182,230,217,225,228,235,235,272,264,288,288,278,262,316,324,310,
293,337,349,344,252,698,664,667,666,611,585]} 1. e4 {[%emt 0:00:05]} c5 {
[%emt 0:00:12]} 2. Nf3 {[%emt 0:00:06][%cal Yg1f3,Yf3d4,Yd4b3]} Nc6 {[%emt 0:
00:11]} 3. d4 {[%emt 0:00:08]} cxd4 {[%emt 0:00:09]} 4. Nxd4 {[%emt 0:00:00]}
Nf6 {[%emt 0:00:16]} 5. Nc3 {[%emt 0:00:09]} d6 {[%emt 0:00:05]} 6. Be2 {
[%emt 0:05:24]} g6 {[%emt 0:02:41]} 7. O-O {[%emt 0:04:48]} Bg7 {[%emt 0:00:00]
} 8. Nb3 {[%emt 0:00:07]} O-O {[%emt 0:01:38]} 9. Re1 {[%emt 0:00:06]} Be6 {
[%emt 0:14:09]} 10. Bf1 {[%emt 0:00:24]} d5 {[%emt 0:00:26]} 11. Nc5 {[%emt 0:
00:00]} d4 {[%emt 0:00:44] B70: Sicilian Dragon: 6 g3 and 6 Be2 (without a
later Be3).} 12. Nxe6 {[%emt 0:00:45]} fxe6 {[%emt 0:00:06]} 13. Nb1 {[%emt 0:
00:00] [#]} Rc8 $146 {[%emt 0:08:03] The position is equal.} ({Predecessor:} 
13... Ne5) 14. Nd2 {[%emt 0:02:58]} (14. a4 {seems wilder.} Ne5 15. c3 Nfg4 16.
f3) 14... h6 {[%emt 0:07:44]} (14... Nb4 $11 {remains equal.} 15. Bc4 Qb6) 15.
e5 {[%emt 0:11:20]} Nd7 {[%emt 0:04:31]} 16. Bc4 {[%emt 0:01:36] Strongly
threatening Nb3.} Ndxe5 {[%emt 0:09:16] Black is on the road to losing.} (16...
Kh7 $11) 17. Bxe6+ $16 {[%emt 0:00:22]} Kh7 {[%emt 0:00:03][%cal Yc6b4]} 18.
Bxc8 {[%emt 0:04:56]} Qxc8 {[%emt 0:00:05]} 19. a3 {[%emt 0:18:45] Inhibits
Nb4.} Qf5 {[%emt 0:11:53]} 20. Ne4 {[%emt 0:02:42]} Nc4 {[%emt 0:20:10]} 21.
Qe2 {[%emt 0:07:07]} Qd5 {[%emt 0:02:02]} 22. Qd3 {[%emt 0:07:01]} Nd6 {
[%emt 0:03:14]} (22... N6e5 {might work better.} 23. Qe2 Rc8) 23. Nxd6 $18 {
[%emt 0:01:14]} Qxd6 {[%emt 0:00:05]} 24. Bd2 {[%emt 0:00:51]} Rf5 {[%emt 0:00:
00]} 25. Re4 {[%emt 0:03:20]} Qf6 {[%emt 0:01:31]} 26. f4 {[%emt 0:01:41]} Qd6
{[%emt 0:02:51]} 27. Rae1 {[%emt 0:05:20]} e5 {[%emt 0:00:36]} 28. Rf1 {
[%emt 0:00:16]} Rf7 {[%emt 0:03:36]} 29. fxe5 {[%emt 0:00:50]} Rxf1+ {[%emt 0:
00:00]} 30. Qxf1 {[%emt 0:00:11]} Nxe5 {[%emt 0:00:04]} 31. Qb5 {[%emt 0:01:04]
} Qc7 {[%emt 0:00:36]} 32. Bf4 {[%emt 0:01:52][%cal Rf4e5]} d3 $2 {[%emt 0:00:
00]} (32... Qxc2 33. Rxe5 Bxe5) 33. cxd3 {[%emt 0:05:44][%cal Rf4e5] White is
clearly winning.} ({Inferior is} 33. Rxe5 Bxe5 34. Bxe5 dxc2 35. Bxc7 c1=Q+ 36.
Kf2 Qxc7 $11) 33... a6 {[%emt 0:00:09]} 34. Qb4 {[%emt 0:00:19]} g5 {[%emt 0:
00:00] [#]} 35. Rxe5 $1 {[%emt 0:01:30] Weighted Error Value: White=0.08 
(flawless) /Black=0.57} 1-0

[Event "44th Chess Olympiad Women 2022"]
[Site "Chennai"]
[Date "2022.08.01"]
[Round "4.14"]
[White "Foudzi, Siti Zulaikha"]
[Black "Houska, Jovanka"]
[Result "1/2-1/2"]
[WhiteElo "2188"]
[BlackElo "2360"]
[Annotator "TA"]
[PlyCount "103"]
[EventDate "2022.??.??"]
[TimeControl "60"]

{[%evp 13,103,0,0,16,24,-27,-2,-5,0,0,0,-14,0,0,0,-12,-15,-35,0,-9,-6,-8,-5,
-31,-23,-48,-7,-25,-21,-23,-21,-21,0,-39,4,0,53,35,197,143,156,148,149,102,198,
157,263,72,137,24,30,0,35,0,0,0,8,0,4,-86,0,-48,-48,-41,-47,-38,-33,-240,-238,
-195,-162,-187,-189,-230,-255,-248,-220,-455,0,-1028,-1028,-1029,-997,-850,0,
-297,0,-731,0,-312,0,-682]} 1. e4 {[%emt 0:00:02]} c6 {[%emt 0:00:08]} 2. d4 {
[%emt 0:00:05]} d5 {[%emt 0:00:05]} 3. exd5 {[%emt 0:00:05]} cxd5 {[%emt 0:00:
00]} 4. Bd3 {[%emt 0:00:06]} Nc6 {[%emt 0:01:50]} 5. c3 {[%emt 0:00:04]} Qc7 {
[%emt 0:00:03]} 6. Ne2 {[%emt 0:00:06]} Bg4 {[%emt 0:00:20]} 7. f3 {[%emt 0:00:
00]} Bd7 {[%emt 0:00:48]} 8. Na3 {[%emt 0:00:13] B13: Caro-Kann: Exchange
Variation and Panov-Botvinnik Attack.} a6 {[%emt 0:00:36]} 9. Qb3 {[%emt 0:00:
00]} ({White should try} 9. Nc2) 9... Nf6 {[%emt 0:11:35] [#]} 10. O-O $146 {
[%emt 0:09:37]} ({Predecessor:} 10. Bf4 Qc8 11. Nb1 Na5 12. Qc2 Bb5 13. O-O e6
14. Nc1 Be7 15. Qe2 Bxd3 16. Nxd3 {1-0 (67) Sitnikov,A (2437)-Bryakin,M (2464)
Cheliabinsk 2021}) 10... Na5 {[%emt 0:13:04]} 11. Qc2 {[%emt 0:00:09]} e6 {
[%emt 0:00:43]} 12. Bf4 {[%emt 0:01:38]} Bd6 {[%emt 0:00:09]} 13. Bxd6 {
[%emt 0:06:29]} Qxd6 {[%emt 0:00:03]} 14. b4 {[%emt 0:00:17]} b5 {[%emt 0:00:
00]} 15. Qd2 {[%emt 0:11:09][%cal Ya3b5]} Nb7 {[%emt 0:02:08]} 16. Rae1 {
[%emt 0:06:26]} Qc7 {[%emt 0:03:45]} 17. g4 {[%emt 0:06:34]} h6 {[%emt 0:04:27]
} 18. Ng3 {[%emt 0:06:00]} Nd6 {[%emt 0:06:01]} 19. Qf4 {[%emt 0:05:06]
Threatens to win with Nf5.} Kf8 {[%emt 0:04:39]} (19... Qxc3 $2 20. Qxd6 Qxd4+
21. Rf2 $18) 20. h4 {[%emt 0:04:26]} a5 {[%emt 0:06:42] Hoping for ...axb4.}
21. Nc2 {[%emt 0:04:15]} Nfe8 {[%emt 0:01:06]} 22. Ne2 {[%emt 0:07:55]} Kg8 {
[%emt 0:17:20]} 23. Rf2 {[%emt 0:01:25]} g6 {[%emt 0:00:49]} 24. Rg2 {[%emt 0:
00:00]} Kg7 {[%emt 0:00:19]} (24... a4 $11) 25. Qe5+ $14 {[%emt 0:01:39]} f6 $2
{[%emt 0:00:07]} (25... Kg8 $1 $14) 26. Qg3 {[%emt 0:00:14]} (26. Qe3 $18)
26... g5 $16 {[%emt 0:00:15] Inhibits Nf4.} 27. f4 $1 {[%emt 0:02:34] fxg5 is
the strong threat.} Nf7 {[%emt 0:03:53]} 28. Rh2 {[%emt 0:06:25]} (28. bxa5
$142 Rxa5 29. Nb4) 28... axb4 {[%emt 0:04:20]} (28... Rg8 $16) 29. Nxb4 {
[%emt 0:00:13]} Ra3 {[%emt 0:04:02]} (29... Rg8 $16) 30. Bb1 $2 {[%emt 0:03:32]
} (30. hxg5 $1 $18 {is the precise move to win.} fxg5 31. Rf1) 30... gxh4 {
[%emt 0:01:36]} (30... gxf4 $142 31. Nxf4 Rxc3) 31. Qd3 {[%emt 0:03:24]} (31.
Rxh4 $6 Rg8 $14) (31. Qxh4 $16 Bc8 32. Rf1 (32. Qh5 Rxc3 33. Kh1 Rc4 $14))
31... Kf8 $11 {[%emt 0:01:07]} 32. Rxh4 {[%emt 0:00:18]} Rg8 {[%emt 0:00:02]}
33. Kf2 {[%emt 0:00:23]} Ned6 {[%emt 0:00:32][%cal Ye8d6,Yd6c4,Yc4d2]} 34. Qf3
{[%emt 0:01:46] Inhibits Ne4+.} Bc8 {[%emt 0:02:53]} (34... Bc6 $5) 35. Rc1 {
[%emt 0:00:32]} Bb7 {[%emt 0:00:32]} 36. Ng3 {[%emt 0:00:30]} (36. Rg1 $11)
36... Ke7 {[%emt 0:01:36]} ({Black should play} 36... Qe7 $1 $17 {[%cal Yd6e4]}
37. Rh3 Ne4+ 38. Nxe4 dxe4 39. Bxe4 Bxe4 40. Qxe4 Rxg4) 37. Qe3 {[%emt 0:00:51]
Against Ne4+} (37. Kg2 $11) 37... Nc4 $15 {[%emt 0:01:07]} 38. Qf3 {[%emt 0:01:
42]} Nd2 {[%emt 0:01:00]} 39. Qe3 {[%emt 0:00:06]} Nxb1 {[%emt 0:02:08]} 40.
Rxb1 {[%emt 0:00:26]} ({White must play} 40. Ne2 $15) 40... Rxc3 $19 {[%emt 0:
00:44]} (40... Qxc3 41. Nf5+ Kd7 42. Qxc3 Rxc3 43. Ne3 $17) 41. Nd3 {[%emt 0:
31:56]} Qc4 $36 {[%emt 0:05:01][%csl Ya2,Yd3] Black has strong initiative.} 42.
Rb3 {[%emt 0:00:00]} Rc2+ {[%emt 0:21:45]} (42... Rxb3 43. axb3 Qc2+ 44. Qe2
$15) 43. Kf3 {[%emt 0:00:00]} e5 {[%emt 0:00:00] And now ...e4+ would win.} (
43... Kf8 44. Nb4 (44. Qxe6 Qxd4 45. Qe7+ Kxe7 $11) 44... Rc1 45. Nd3 $15) 44.
Nf5+ {[%emt 0:00:00]} Kd8 $1 {[%emt 0:01:16]} 45. fxe5 {[%emt 0:00:00]} (45.
Qe1 {was the only defense.} Rxa2 46. Rc3) 45... fxe5 $2 {[%emt 0:01:19]} ({
Better is} 45... Rxa2 $19 46. Rb4 Nxe5+ $1 47. Kg3 Qxd3 48. Qxd3 Nxd3 49. Rxb5
Ra3 $1) 46. Nxh6 $2 {[%emt 0:00:00] Pair of Knights!} (46. Kg3 $11) 46... Ng5+
$1 {[%emt 0:02:38]} (46... Nxh6 47. Qxh6 e4+ 48. Ke3 exd3 49. Qd6+ Ke8 50. Qe6+
Kf8 51. Qf5+ Ke8 52. Qe6+ Kf8 53. Qf5+ Ke8 54. Qe6+ $11) 47. Kg3 {[%emt 0:00:
00]} Ne4+ {[%emt 0:00:00]} 48. Kh3 {[%emt 0:00:00]} Ng5+ $2 {[%emt 0:02:30]} (
48... Rf8 49. Nf5 Rd2) 49. Kg3 $1 {[%emt 0:00:00] [#] Really sharp!} Ne4+ $2 {
[%emt 0:00:03]} (49... exd4 50. Qe5 Rc3 51. Rxc3 dxc3 52. Qb8+ (52. Qd6+ $2 Kc8
$19) 52... Bc8 53. Qd6+ Ke8 54. Nf2 (54. Nc5 $2 Qxc5 55. Qxc5 Ne4+ 56. Kf3 Nxc5
$19) 54... Ne4+ 55. Nxe4 Qd3+ 56. Kh2 Qe2+ 57. Kh3 Qf1+ 58. Kh2 Qe2+ 59. Kh3
Qf1+ 60. Kh2 Qe2+ $11) (49... Rxa2 $1 50. Nxg8 (50. Nc5 $2 exd4 51. Qf4 Ne4+
52. Kh3 Qxc5 $19) 50... Ne4+ 51. Kf3 Nd2+ 52. Kg2 Nxb3+ 53. Kg3 Nd2 54. Qg5+
Kc8 55. Qf5+ Kb8) 50. Kh3 {[%emt 0:00:00]} Ng5+ {[%emt 0:02:15]} (50... Rf8
$142 51. Nf5 Rd2) 51. Kg3 $1 {[%emt 0:00:00] [#]} Ne4+ $2 {[%emt 0:00:34]} ({
Inferior is} 51... exd4 52. Qe5 Rc3 53. Rxc3 dxc3 54. Qb8+ (54. Qd6+ $2 Kc8 $19
) 54... Bc8 55. Qd6+ Ke8 56. Nf2 $11 (56. Nc5 $2 Qxc5 57. Qxc5 Ne4+ 58. Kf3
Nxc5 $19)) (51... Rxa2 $1 52. Nxg8 (52. Nc5 $2 exd4 53. Qf4 Ne4+ 54. Kh3 Qxc5
$19) 52... Ne4+ 53. Kf3 Nd2+ 54. Kg2 Nxb3+ 55. Kg3 Nd2 56. Qg5+ Kc8 57. Qf5+
Kb8) 52. Kh3 {[%emt 0:00:00] Never resign too early! Weighted Error Value:
White=0.58/ Black=0.76. An unexpected result.} 1/2-1/2